Workbook

Sheet Index
C3: Ratio Analysis

Sheet Instructions
D3: Instructions
D4: Please Read This Page Carefully
D7: Data Entry
D8: The "Income Statement" and "Balance Sheet" are your two data entry worksheets.
D9: Navigation:
D10: 1. The "Index Worksheet" is your transportation page. All pages have a return button to it.
D11: Additional Instructions:
D12: 1. Look for the red corner triangles for additional instructions on the worksheets. For example:>>>> | L12: Point Here
D13: Printing:
D14: 1. Be sure to "Print Preview" before printing a page. All pages are setup to print.
D15: 2. You may print multiple pages by holding down the CONTROL-KEY and clicking on individual TABS or
D16: Right click on a tab and "select all sheets".

Sheet Ratios Introduction

Sheet Income Statement
I13: Forecasted | M13: Total
I14: 1ST QTR | J14: 2ND QTR | K14: 3RD QTR | L14: 4TH QTR | M14: 1999
F15: Sales
G16: Sales | I16: 2000000 | J16: 1500000 | K16: 1300000 | L16: 2010100 | M16: =SUM(I16:L16) -> 6810100
G17: Cost of sales | I17: =SUM(I45:I47) -> 945000 | J17: =SUM(J45:J47) -> 865000 | K17: =SUM(K45:K47) -> 833000 | L17: =SUM(L45:L47) -> 946616 | M17: =SUM(I17:L17) -> 3589616
H19: Gross profit | I19: =I16-I17 -> 1055000 | J19: =J16-J17 -> 635000 | K19: =K16-K17 -> 467000 | L19: =L16-L17 -> 1063484 | M19: =M16-M17 -> 3220484
F21: Expenses
G22: Operating expenses | I22: 424000 | J22: 318000 | K22: 275600 | L22: 426141.2 | M22: =SUM(I22:L22) -> 1443741.2
G23: Interest | I23: 16250 | J23: 16250 | K23: 16250 | L23: 16250 | M23: =SUM(I23:L23) -> 65000
G24: Depreciation | I24: 32500 | J24: 33958 | K24: 33958 | L24: 33958 | M24: =SUM(I24:L24) -> 134374
G25: Amortization | I25: 1250 | J25: 1250 | K25: 1250 | L25: 1250 | M25: =SUM(I25:L25) -> 5000
H26: Total expenses | I26: =SUM(I22:I25) -> 474000 | J26: =SUM(J22:J25) -> 369458 | K26: =SUM(K22:K25) -> 327058 | L26: =SUM(L22:L25) -> 477599.2 | M26: =SUM(M22:M25) -> 1648115.2
H28: Operating income | I28: =I19-I26 -> 581000 | J28: =J19-J26 -> 265542 | K28: =K19-K26 -> 139942 | L28: =L19-L26 -> 585884.8 | M28: =M19-M26 -> 1572368.8
F30: Other income and expenses
G31: Gain (loss) on sale of assets | I31: 100000 | J31: 10000 | K31: 3000 | L31: 405700 | M31: =SUM(I31:L31) -> 518700
G32: Other (net) | I32: 20000 | J32: 50000 | K32: 100000 | L32: 200000 | M32: =SUM(I32:L32) -> 370000
H33: Subtotal | I33: =I31+I32 -> 120000 | J33: =J31+J32 -> 60000 | K33: =K31+K32 -> 103000 | L33: =L31+L32 -> 605700 | M33: =M31+M32 -> 888700
H36: Income before tax | I36: =I28+I33 -> 701000 | J36: =J28+J33 -> 325542 | K36: =K28+K33 -> 242942 | L36: =L28+L33 -> 1191584.8 | M36: =M28+M33 -> 2461068.8
G37: Please enter a tax percentage
G38: Taxes @ | H38: 0.3 | I38: =0.3*I36 -> 210300 | J38: =0.3*J36 -> 97662.6 | K38: =0.3*K36 -> 72882.6 | L38: =0.3*L36 -> 357475.44 | M38: =SUM(H38:L38) -> 738320.94
H40: Net income | I40: =I36-I38 -> 490700 | J40: =J36-J38 -> 227879.4 | K40: =K36-K38 -> 170059.4 | L40: =L36-L38 -> 834109.36 | M40: =SUM(I40:L40) -> 1722748.16
F42: Detailed Supporting Information
F44: Cost of sales
H45: Direct labor | I45: 320000 | J45: 240000 | K45: 208000 | L45: 321616 | M45: =SUM(I45:L45) -> 1089616
H46: Materials | I46: 500000 | J46: 500000 | K46: 500000 | L46: 500000 | M46: =SUM(I46:L46) -> 2000000
H47: Other costs | I47: 125000 | J47: 125000 | K47: 125000 | L47: 125000 | M47: =SUM(I47:L47) -> 500000

Sheet Balance Sheet
I14: Actual | J14: Forecast
I15: 2002 | J15: 1ST QTR | K15: 2ND QTR | L15: 3RD QTR | M15: 4TH QTR
F16: ASSETS
F17: Current Assets
G18: Cash and cash equivalents | I18: 451000 | J18: 90360 | K18: 229233 | L18: 469196 | M18: -945586
G19: Accounts receivable | I19: 350000 | J19: 657534 | K19: 493151 | L19: 427397 | M19: 660855
G20: Inventory | I20: 400000 | J20: 630411 | K20: 590959 | L20: 575178 | M20: 1186002
G21: Other current assets | I21: 10000 | J21: 60000 | K21: 45090 | L21: 76320 | M21: 50000
H22: Total Current Assets | I22: =SUM(I18:I21) -> 1211000 | J22: =SUM(J18:J21) -> 1438305 | K22: =SUM(K18:K21) -> 1358433 | L22: =SUM(L18:L21) -> 1548091 | M22: =SUM(M18:M21) -> 951271
F24: Fixed Assets
G25: Land | I25: 100000 | J25: 112500 | K25: 125000 | L25: 137500 | M25: 150000
G26: Buildings | I26: 1500000 | J26: 1450000 | K26: 1450000 | L26: 1450000 | M26: 1450000
G27: Equipment | I27: 800000 | J27: 875000 | K27: 875000 | L27: 875000 | M27: 875000
H28: Subtotal | I28: =SUM(I25:I27) -> 2400000 | J28: =SUM(J25:J27) -> 2437500 | K28: =SUM(K25:K27) -> 2450000 | L28: =SUM(L25:L27) -> 2462500 | M28: =SUM(M25:M27) -> 2475000
G29: Less-accumulated depreciation | I29: 400000 | J29: 432500 | K29: 466458 | L29: 500416 | M29: 534374
H30: Total Fixed Assets | I30: =I28-I29 -> 2000000 | J30: =J28-J29 -> 2005000 | K30: =K28-K29 -> 1983542 | L30: =L28-L29 -> 1962084 | M30: =M28-M29 -> 1940626
F32: Intangible Assets
G33: Cost | I33: 50000 | J33: 50000 | K33: 50000 | L33: 50000 | M33: 50000
G34: Less-accumulated amortization | I34: 20000 | J34: 21250 | K34: 22500 | L34: 23750 | M34: 25000
H35: Total Intangible Assets | I35: =I33-I34 -> 30000 | J35: =J33-J34 -> 28750 | K35: =K33-K34 -> 27500 | L35: =L33-L34 -> 26250 | M35: =M33-M34 -> 25000
F37: Other assets | I37: 25000 | J37: 33000 | K37: 120000 | L37: 5000 | M37: 23000
H38: Total Assets | I38: =I35+I30+I22+I37 -> 3266000 | J38: =J35+J30+J22+J37 -> 3505055 | K38: =K35+K30+K22+K37 -> 3489475 | L38: =L35+L30+L22+L37 -> 3541425 | M38: =M35+M30+M22+M37 -> 2939897
I40: Actual | J40: Forecast
F41: LIABILITIES AND | I41: 1999 | J41: 1ST QTR | K41: 2ND QTR | L41: 3RD QTR | M41: 4TH QTR
F42: STOCKHOLDERS' EQUITY
F43: Current Liabilities
G44: Accounts payable | I44: 600000 | J44: 328767 | K44: 328767 | L44: 328767 | M44: 328767
G45: Notes payable | I45: 100000 | J45: 50000 | K45: 50000 | L45: 50000 | M45: 50000
G46: Current portion of long-term debt | I46: 100000 | J46: 100000 | K46: 100000 | L46: 100000 | M46: 100000
G47: Income taxes | I47: 30000 | J47: 183300 | K47: 52663 | L47: 14983 | M47: -188735
G48: Accrued expenses | I48: 90000 | J48: 83288 | K48: 62466 | L48: 54137 | M48: 83708
G49: Other current liabilities | I49: 16000 | J49: 12000 | K49: 12000 | L49: 12000 | M49: 12000
H50: Total Current Liabilities | I50: =SUM(I44:I49) -> 936000 | J50: =SUM(J44:J49) -> 757355 | K50: =SUM(K44:K49) -> 605896 | L50: =SUM(L44:L49) -> 559887 | M50: =SUM(M44:M49) -> 385740
F52: Non-Current Liabilities
G53: Long-term debt | I53: 600000 | J53: 500000 | K53: 500000 | L53: 500000 | M53: 500000
G54: Deferred income | I54: 100000 | J54: 90000 | K54: 90000 | L54: 90000 | M54: 90000
G55: Deferred income taxes | I55: 30000 | J55: 27000 | K55: 27000 | L55: 27000 | M55: 27000
G56: Other long-term liabilities | I56: 50000 | J56: 90000 | K56: 40000 | L56: 40000 | M56: 40000
H58: Total Liabilities | I58: =I50+SUM(I53:I56) -> 1716000 | J58: =J50+SUM(J53:J56) -> 1464355 | K58: =K50+SUM(K53:K56) -> 1262896 | L58: =L50+SUM(L53:L56) -> 1216887 | M58: =M50+SUM(M53:M56) -> 1042740
F60: =IF(#REF!="Y","Stockholders' Equity","Owners' Equity") ->  | G60: Shares Outstanding | I60: 1000 | J60: 1000 | K60: 1000 | L60: 1000 | M60: 1000
G61: Capital stock issued | I61: 100000 | J61: 100000 | K61: 100000 | L61: 100000 | M61: 100000
G62: Additional paid in capital | I62: 50000 | J62: 50000 | K62: 50000 | L62: 50000 | M62: 50000
G63: Retained earnings | I63: 1400000 | J63: 1890700 | K63: 2076579 | L63: 2174538 | M63: 1747157
I64: =SUM(I61:I63) -> 1550000 | J64: =SUM(J61:J63) -> 2040700 | K64: =SUM(K61:K63) -> 2226579 | L64: =SUM(L61:L63) -> 2324538 | M64: =SUM(M61:M63) -> 1897157
H66: Total Liabilities and Equity | I66: =I64+I58 -> 3266000 | J66: =J64+J58 -> 3505055 | K66: =K64+K58 -> 3489475 | L66: =L64+L58 -> 3541425 | M66: =M64+M58 -> 2939897

Sheet EPS
B2: Profitability Ratios
B3: Earnings Per Share (EPS) Ratio | D3: Quarter 1 | E3: Quarter 2 | F3: Quarter 3 | G3: Quarter 4
B4: Net income | D4: ='Income Statement'!_1ST_QTR Net_income -> 490700 | E4: ='Income Statement'!_2ND_QTR Net_income -> 227879.4 | F4: ='Income Statement'!_3RD_QTR Net_income -> 170059.4 | G4: ='Income Statement'!_4TH_QTR Net_income -> 834109.36
B5: Shares of common stock outstanding | D5: ='Balance Sheet'!I60 -> 1000 | E5: ='Balance Sheet'!J60 -> 1000 | F5: ='Balance Sheet'!K60 -> 1000 | G5: ='Balance Sheet'!L60 -> 1000
B6: EPS | D6: =Net_income 'Income Statement'!_1ST_QTR/D5 -> 490.7 | E6: =Net_income 'Income Statement'!_2ND_QTR/E5 -> 227.8794 | F6: =Net_income 'Income Statement'!_3RD_QTR/F5 -> 170.0594 | G6: =Net_income 'Income Statement'!_4TH_QTR/G5 -> 834.10936

Sheet GP Margin
B2: Profitability Ratios
B3: Gross Profit Margin | D3: Quarter 1 | E3: Quarter 2 | F3: Quarter 3 | G3: Quarter 4
B4: Sales | D4: ='Income Statement'!_1ST_QTR Sales -> 2000000 | E4: ='Income Statement'!_2ND_QTR Sales -> 1500000 | F4: ='Income Statement'!_3RD_QTR Sales -> 1300000 | G4: ='Income Statement'!_4TH_QTR Sales -> 2010100
B5: Cost of sales | D5: ='Income Statement'!_1ST_QTR COGS -> 945000 | E5: ='Income Statement'!_2ND_QTR COGS -> 865000 | F5: ='Income Statement'!_3RD_QTR COGS -> 833000 | G5: ='Income Statement'!_4TH_QTR COGS -> 946616
B6: Gross profit margin | D6: =(D4-D5)/D4 -> 0.5275 | E6: =(E4-E5)/E4 -> 0.4233333333 | F6: =(F4-F5)/F4 -> 0.3592307692 | G6: =(G4-G5)/G4 -> 0.5290701955

Sheet NP Margin
B2: Profitability Ratios
B3: Net Profit Margin | D3: Quarter 1 | E3: Quarter 2 | F3: Quarter 3 | G3: Quarter 4
B4: Net Income | D4: ='Income Statement'!_1ST_QTR Net_income -> 490700 | E4: ='Income Statement'!_2ND_QTR Net_income -> 227879.4 | F4: ='Income Statement'!_3RD_QTR Net_income -> 170059.4 | G4: ='Income Statement'!_4TH_QTR Net_income -> 834109.36
B5: Sales | D5: ='Income Statement'!_1ST_QTR Sales -> 2000000 | E5: ='Income Statement'!_2ND_QTR Sales -> 1500000 | F5: ='Income Statement'!_3RD_QTR Sales -> 1300000 | G5: ='Income Statement'!_4TH_QTR Sales -> 2010100
B6: Net profit margin | D6: =D4/D5 -> 0.24535 | E6: =E4/E5 -> 0.1519196 | F6: =F4/F5 -> 0.1308149231 | G6: =G4/G5 -> 0.4149591364

Sheet ROA
B2: Profitability Ratios
B3: Return on Assets | C3: Full Year
B4: EBITDA | C4: =ANNUAL GrossProfit - ANNUAL OperatingExpense -> 1776742.8
B5: Total assets | C5: =AVERAGE(OFFSET(Total_Assets,0,1,1,4)) -> 3368963
B6: Return on assets | C6: =C4/C5 -> 0.5273856673

Sheet ROE
B2: Profitability Ratios
B3: Return on Equity | D3: Quarter 1 | E3: Quarter 2 | F3: Quarter 3 | G3: Quarter 4
B4: Earnings after taxes | D4: ='Income Statement'!_1ST_QTR Net_income -> 490700 | E4: ='Income Statement'!_2ND_QTR Net_income -> 227879.4 | F4: ='Income Statement'!_3RD_QTR Net_income -> 170059.4 | G4: ='Income Statement'!_4TH_QTR Net_income -> 834109.36
B5: Stockholder's equity | D5: ='Balance Sheet'!_1ST_QTR Equity -> 2040700 | E5: ='Balance Sheet'!_2ND_QTR Equity -> 2226579 | F5: ='Balance Sheet'!_3RD_QTR Equity -> 2324538 | G5: ='Balance Sheet'!_4TH_QTR Equity -> 1897157
B6: Return on equity | D6: =D4/D5 -> 0.240456706 | E6: =E4/E5 -> 0.1023450774 | F6: =F4/F5 -> 0.07315836523 | G6: =G4/G5 -> 0.4396628007

Sheet Current Ratio
B2: Liquidity Ratios
B3: Current ratio | D3: Quarter 1 | E3: Quarter 2 | F3: Quarter 3 | G3: Quarter 4
B4: Current assets | D4: ='Balance Sheet'!_1ST_QTR CurrentAssets -> 1438305 | E4: ='Balance Sheet'!_2ND_QTR CurrentAssets -> 1358433 | F4: ='Balance Sheet'!_3RD_QTR CurrentAssets -> 1548091 | G4: ='Balance Sheet'!_4TH_QTR CurrentAssets -> 951271
B5: Current liabilities | D5: ='Balance Sheet'!_1ST_QTR CurrentLiabilities -> 757355 | E5: ='Balance Sheet'!_2ND_QTR CurrentLiabilities -> 605896 | F5: ='Balance Sheet'!_3RD_QTR CurrentLiabilities -> 559887 | G5: ='Balance Sheet'!_4TH_QTR CurrentLiabilities -> 385740
B6: Current ratio | D6: =D4/D5 -> 1.899116002 | E6: =E4/E5 -> 2.242023384 | F6: =F4/F5 -> 2.765006153 | G6: =G4/G5 -> 2.466093742

Sheet Quick Ratio
B2: Liquidity Ratios
B3: Quick ratio | D3: Quarter 1 | E3: Quarter 2 | F3: Quarter 3 | G3: Quarter 4
B4: Current assets | D4: ='Balance Sheet'!_1ST_QTR CurrentAssets -> 1438305 | E4: ='Balance Sheet'!_2ND_QTR CurrentAssets -> 1358433 | F4: ='Balance Sheet'!_3RD_QTR CurrentAssets -> 1548091 | G4: ='Balance Sheet'!_4TH_QTR CurrentAssets -> 951271
B5: Inventory | D5: ='Balance Sheet'!_1ST_QTR Inventory -> 630411 | E5: ='Balance Sheet'!_2ND_QTR Inventory -> 590959 | F5: ='Balance Sheet'!_3RD_QTR Inventory -> 575178 | G5: ='Balance Sheet'!_4TH_QTR Inventory -> 1186002
B6: Current liabilities | D6: ='Balance Sheet'!_1ST_QTR CurrentLiabilities -> 757355 | E6: ='Balance Sheet'!_2ND_QTR CurrentLiabilities -> 605896 | F6: ='Balance Sheet'!_3RD_QTR CurrentLiabilities -> 559887 | G6: ='Balance Sheet'!_4TH_QTR CurrentLiabilities -> 385740
B7: Quick ratio | D7: =(D4-D5)/D6 -> 1.066730925 | E7: =(E4-E5)/E6 -> 1.266676129 | F7: =(F4-F5)/F6 -> 1.737695285 | G7: =(G4-G5)/G6 -> -0.6085212838

Sheet ACP
B2: Activity Ratios
B3: Average Collection Period | D3: Quarter 1 | E3: Quarter 2 | F3: Quarter 3 | G3: Quarter 4
B4: Accounts Receivable | D4: ='Balance Sheet'!_1ST_QTR AccountsReceivable -> 657534 | E4: ='Balance Sheet'!_2ND_QTR AccountsReceivable -> 493151 | F4: ='Balance Sheet'!_3RD_QTR AccountsReceivable -> 427397 | G4: ='Balance Sheet'!_4TH_QTR AccountsReceivable -> 660855
B5: Credit sales per day | D5: ='Income Statement'!_1ST_QTR Sales/90 -> 22222.22222 | E5: ='Income Statement'!_2ND_QTR Sales/90 -> 16666.66667 | F5: ='Income Statement'!_3RD_QTR Sales/90 -> 14444.44444 | G5: ='Income Statement'!_4TH_QTR Sales/90 -> 22334.44444
B6: Average Collection Period | D6: =D4/D5 -> 29.58903 | E6: =E4/E5 -> 29.58906 | F6: =F4/F5 -> 29.58902308 | G6: =G4/G5 -> 29.5890503

Sheet ITO
B2: Activity Ratios
B3: Inventory Turnover Ratio | D3: Quarter 1 | E3: Quarter 2 | F3: Quarter 3 | G3: Quarter 4
B4: Cost of Goods Sold | D4: ='Income Statement'!_1ST_QTR COGS -> 945000 | E4: ='Income Statement'!_2ND_QTR COGS -> 865000 | F4: ='Income Statement'!_3RD_QTR COGS -> 833000 | G4: ='Income Statement'!_4TH_QTR COGS -> 946616
B5: Average Inventory | D5: ='Balance Sheet'!_1ST_QTR Inventory -> 630411 | E5: ='Balance Sheet'!_2ND_QTR Inventory -> 590959 | F5: ='Balance Sheet'!_3RD_QTR Inventory -> 575178 | G5: ='Balance Sheet'!_4TH_QTR Inventory -> 1186002
B6: Inventory Turnover | D6: =D4/D5 -> 1.499022067 | E6: =E4/E5 -> 1.463722526 | F6: =F4/F5 -> 1.448247325 | G6: =G4/G5 -> 0.7981571701

Sheet Debt Ratio
B2: Leverage Ratios
B3: Debt ratio | D3: Quarter 1 | E3: Quarter 2 | F3: Quarter 3 | G3: Quarter 4
B4: Total Liabilities | D4: ='Balance Sheet'!_1ST_QTR Total_Liabilities -> 1464355 | E4: ='Balance Sheet'!_2ND_QTR Total_Liabilities -> 1262896 | F4: ='Balance Sheet'!_3RD_QTR Total_Liabilities -> 1216887 | G4: ='Balance Sheet'!_4TH_QTR Total_Liabilities -> 1042740
B5: Total Assets | D5: ='Balance Sheet'!_1ST_QTR Total_Assets -> 3505055 | E5: ='Balance Sheet'!_2ND_QTR Total_Assets -> 3489475 | F5: ='Balance Sheet'!_3RD_QTR Total_Assets -> 3541425 | G5: ='Balance Sheet'!_4TH_QTR Total_Assets -> 2939897
B6: Debt ratio | D6: =D4/D5 -> 0.4177837438 | E6: =E4/E5 -> 0.361915761 | F6: =F4/F5 -> 0.3436150702 | G6: =G4/G5 -> 0.3546858955

Sheet Equity Ratio
B2: Leverage Ratios
B3: Equity ratio | D3: Quarter 1 | E3: Quarter 2 | F3: Quarter 3 | G3: Quarter 4
B4: Total Equity | D4: ='Balance Sheet'!_1ST_QTR Equity -> 2040700 | E4: ='Balance Sheet'!_2ND_QTR Equity -> 2226579 | F4: ='Balance Sheet'!_3RD_QTR Equity -> 2324538 | G4: ='Balance Sheet'!_4TH_QTR Equity -> 1897157
B5: Total Assets | D5: ='Balance Sheet'!_1ST_QTR Total_Assets -> 3505055 | E5: ='Balance Sheet'!_2ND_QTR Total_Assets -> 3489475 | F5: ='Balance Sheet'!_3RD_QTR Total_Assets -> 3541425 | G5: ='Balance Sheet'!_4TH_QTR Total_Assets -> 2939897
B6: Equity ratio | D6: =D4/D5 -> 0.5822162562 | E6: =E4/E5 -> 0.638084239 | F6: =F4/F5 -> 0.6563849298 | G6: =G4/G5 -> 0.6453141045

Sheet TIE
B2: Leverage Ratios
B3: Times Interest Earned Ratio | D3: Quarter 1 | E3: Quarter 2 | F3: Quarter 3 | G3: Quarter 4
B4: EBIT | D4: ='Income Statement'!_1ST_QTR Net_income+'Income Statement'!_1ST_QTR Interest+'Income Statement'!_1ST_QTR Taxes -> 717250 | E4: ='Income Statement'!_2ND_QTR Net_income+'Income Statement'!_2ND_QTR Interest+'Income Statement'!_2ND_QTR Taxes -> 341792 | F4: ='Income Statement'!_3RD_QTR Net_income+'Income Statement'!_3RD_QTR Interest+'Income Statement'!_3RD_QTR Taxes -> 259192 | G4: ='Income Statement'!_4TH_QTR Net_income+'Income Statement'!_4TH_QTR Interest+'Income Statement'!_4TH_QTR Taxes -> 1207834.8
B5: Interest charges | D5: ='Income Statement'!_1ST_QTR Interest -> 16250 | E5: ='Income Statement'!_2ND_QTR Interest -> 16250 | F5: ='Income Statement'!_3RD_QTR Interest -> 16250 | G5: ='Income Statement'!_4TH_QTR Interest -> 16250
B6: Times interest earned | D6: =D4/D5 -> 44.13846154 | E6: =E4/E5 -> 21.03335385 | F6: =F4/F5 -> 15.95027692 | G6: =G4/G5 -> 74.32829538
